Cogmind - Beta 10.2 @@@ ROGUE MODE // 2021.11.11 @ 20:52:51 Player: Grimrest Result: Destroyed by D-53 Grenadier with Mini Grenade Launcher Performance ------------- Evolutions (0) 0 Regions Visited (2) 400 Robots Destroyed (22) 110 Value Destroyed (382) 382 Prototype IDs (4) 80 Alien Tech Used (0) 0 Bonus (-8) -8 TOTAL SCORE: 964 Bonus ------- Friendly Fire -8 Cogmind --------- Core Integrity 0/250 Matter 285/300 Energy 86/100 System Corruption 0% Temperature Cool (0) Movement Walking (150) Ox1 Location -10/Mines Parts ------- > --- POWER (1) -------- (None) > --- PROPULSION (2) --- Aluminum Leg > --- UTILITY (2) ------ Medium Storage Unit Sensor Array > --- WEAPON (2) ------- Hammer > --- INVENTORY (8) ---- Aluminum Leg Improved Heat Sink Improved Heat Sink Light Armor Plating Grenade Launcher Mining Laser Peak State ------------ > --- POWER ------------ Light Nuclear Core > --- PROPULSION ------- Light Treads Aluminum Leg > --- UTILITY ---------- Medium Storage Unit Sensor Array > --- WEAPON ----------- Beam Cannon Hammer > --- INVENTORY -------- Aluminum Leg Aluminum Leg Improved Heat Sink Improved Heat Sink Medium Laser Beam Cannon Grenade Launcher [Rating: 10] Favorites ----------- Power Light Nuclear Core Engine Light Ion Engine Power Core Light Nuclear Core Propulsion Aluminum Leg Treads Light Treads Leg Aluminum Leg Utility Medium Storage Unit Device Sensor Array Storage Medium Storage Unit Weapon Beam Cannon Energy Gun Medium Laser Energy Cannon Beam Cannon Ballistic Gun Assault Rifle Launcher Grenade Launcher Impact Weapon Hammer Build | -11 -10 -10 ------- Run | Scr Mat Min Slots Evolved . | . . . Power . | . . . Propulsion . | . . . Utility . | . . . Weapon . | . . . Parts Attached 23 | 6 11 6 Power 2 | 1 1 . Engine 1 | 1 . . Core 1 | . 1 . Reactor . | . . . Propulsion 7 | 3 3 1 Treads 2 | 1 1 . Leg 5 | 2 2 1 Wheel . | . . . Hover . | . . . Flight . | . . . Utility 2 | . 2 . Device 1 | . 1 . Storage 1 | . 1 . Processor . | . . . Hackware . | . . . Protection . | . . . Artifact . | . . . Weapon 12 | 2 5 5 Energy Gun 5 | 1 2 2 Energy Cannon 3 | . 2 1 Ballistic Gun 1 | 1 . . Ballistic Cannon . | . . . Launcher 1 | . . 1 Special Weapon . | . . . Impact Weapon 2 | . 1 1 Slashing Weapon . | . . . Piercing Weapon . | . . . Special Melee Weapon . | . . . Unidentified Prototypes . | . . . Parts Lost 8 | . 2 6 Power 1 | . . 1 Propulsion 3 | . 1 2 Utility . | . . . Weapon 4 | . 1 3 Highest Loss Streak 6 | . 1 6 Average Slot Usage (%) 91 | . 89 96 Engine 1 | . 1 . Core 12 | . 12 12 Treads 6 | . 10 . Leg 20 | . 16 26 Device 8 | . 5 14 Storage 13 | . 13 14 Energy Gun 7 | . 5 11 Energy Cannon 12 | . 11 13 Ballistic Gun 3 | . 5 . Impact Weapon 3 | . 5 . Naked Turns . | . . . Heaviest Build 20 | 7 20 20 Greatest Support 20 | 20 20 20 Greatest Overweight (x) 3 | 2 1 3 Average Overweight (x) . | . . . Largest Inventory Capacity 8 | 4 8 8 Average Capacity 7 | 4 7 8 Most Carried 8 | 2 8 8 Average Carried 6 | . 6 7 Final Capacity 8 | 4 8 8 Final Carried 8 | 2 8 6 Class Distribution -------------------- 100% | Mutant Dominant Class ---------------- Mutant | -10/Materials Mutant | -10/Mines Resources | -11 -10 -10 ----------- Run | Scr Mat Min Matter Collected 460 | 281 139 40 Remotely . | . . . Salvage Created 799 | 99 595 105 Parts 42 | 5 27 10 Haulers Intercepted 2 | . 2 . Recyclers Shooed 1 | 1 . . Parts Field Recycled . | . . . Retrieved Matter . | . . . Parts Self-Destructed . | . . . Prevented . | . . . Kills | -11 -10 -10 ------- Run | Scr Mat Min Combat Hostiles Destroyed 12 | . 9 3 Melee 3 | . 2 1 Guns 5 | . 5 . Cannons 2 | . 2 . AOE 2 | . . 2 Classes Destroyed 8 | 2 5 1 Worker 1 | . 1 . Builder 1 | . . 1 Tunneler 2 | 1 . 1 Hauler 2 | . 2 . Recycler 3 | 1 2 . Watcher 1 | . 1 . Swarmer 5 | . 3 2 Grunt 7 | . 6 1 Best Kill Streak 3 | 2 3 2 Combat Bots Only 3 | . 3 2 Max Kills in Single Turn 2 | 1 2 2 Gunslinging 1 | . 1 . Exploded 2 | . . 2 Melee 1 | . 1 1 Uniques/NPCs Destroyed . | . . . Combat | -11 -10 -10 -------- Run | Scr Mat Min Damage Taken 1026 | . 493 533 Core 265 | . 58 207 Absorbed by Shields . | . . . Core Remaining (%) 100 | 100 . . Volleys Fired 49 | 7 34 8 Largest 2 | 2 2 2 Hottest 120 | 60 120 110 Shots Fired 87 | 14 57 16 Gun 51 | 14 30 7 Cannon 35 | . 27 8 Launcher 1 | . . 1 Special . | . . . Kinetic 20 | 7 13 . Thermal 55 | . 40 15 Explosive 1 | . . 1 Electromagnetic 11 | 7 4 . Robot Hit Streak 5 | 3 5 4 Robot Miss Streak 3 | 1 3 1 Penetration Max . | . . . Secondary Targets 1 | . 1 . Max Gunslinging Chain 1 | . 1 . Shots Hit Robots 59 | 6 40 13 Core Hits 28 | 3 18 7 Critical Hits . | . . . Critical Kills . | . . . Critical Parts Destroyed . | . . . Melee Attacks 15 | . 10 5 Impact 15 | . 10 5 Slashing . | . . . Piercing . | . . . Sneak Attacks . | . . . Combat Hostiles . | . . . Follow-up Attacks . | . . . Damage Inflicted 872 | 71 533 268 Guns 288 | 71 177 40 Cannons 303 | . 194 109 Explosions 63 | . . 63 Melee 218 | . 162 56 Ramming . | . . . Kinetic 125 | 20 105 . Thermal 403 | . 254 149 Explosive 63 | . . 63 Electromagnetic 63 | 51 12 . Impact 218 | . 162 56 Slashing . | . . . Piercing . | . . . Highest Corruption . | . . . Average Corruption . | . . . Corruption Purged . | . . . Overload Shots . | . . . Overflow Damage 1 | . 1 . Projectiles 1 | . 1 . Explosions . | . . . Melee . | . . . Knockbacks 1 | . 1 . Impact 1 | . 1 . Kinetic . | . . . Secondary . | . . . Self-Inflicted Damage . | . . . Shots . | . . . Rammed . | . . . Targets Rammed . | . . . Kicked . | . . . Crushed . | . . . Highest Temperature 356 | . 356 162 Average Temperature 80 | . 86 60 Received Heat Transfer 300 | . 252 48 Effects 5 | . 5 . Shutdowns 1 | . 1 . Energy Bleed 1 | . 1 . Interference 3 | . 3 . Siege Activations . | . . . Robots Corrupted . | . . . Combat Hostiles . | . . . Parts Fried . | . . . Impact Corruptions . | . . . Robots Melted . | . . . Combat Hostiles . | . . . Parts Melted . | . . . Heat Transferred 889 | . 556 333 Parts Sabotaged . | . . . Parts Stolen . | . . . Parts Stripped . | . . . Power Chain Reactions . | . . . Missiles Intercepted . | . . . Alert | -11 -10 -10 ------- Run | Scr Mat Min Peak Influence 193 | 10 193 56 Initial 6 | . 6 6 Average 56 | 2 74 33 Maximum Alert Level . | . . . Low Security (%) 100 | 100 100 100 Level 1 . | . . . Level 2 . | . . . Level 3 . | . . . Level 4 . | . . . Level 5 . | . . . High Security . | . . . Max Security . | . . . Squads Dispatched 2 | . 2 . Investigation 1 | . 1 . Extermination . | . . . Reinforcement 1 | . 1 . Assault . | . . . Garrison . | . . . Intercept . | . . . Construction Impeded . | . . . Haulers Reinforced . | . . . Stealth | -11 -10 -10 --------- Run | Scr Mat Min Distress Signals . | . . . Communications Jammed . | . . . Distress Signals . | . . . Times Spotted 34 | . 20 14 Peak Tracking Total 7 | . 4 7 Tactical Retreats . | . . . Traps | -11 -10 -10 ------- Run | Scr Mat Min Traps Triggered 1 | . 1 . Indirectly . | . . . Trap Hack Attempts . | . . . Triggered . | . . . Disarmed 4 | . 4 . Reprogrammed 1 | . 1 . Reused . | . . . Traps Extracted . | . . . Installed . | . . . Triggered . | . . . Machines | -11 -10 -10 ---------- Run | Scr Mat Min Machines Disabled 1 | . 1 . Max in Single Turn 1 | . 1 . Machines Sabotaged . | . . . Garrisons Compromised . | . . . Overloaded Fab Kills . | . . . Fab Network Shutdowns . | . . . Hacking | -11 -10 -10 --------- Run | Scr Mat Min Machines Accessed 6 | . 6 . Terminals 5 | . 5 . Fabricators . | . . . Repair Stations . | . . . Recycling Units 1 | . 1 . Scanalyzers . | . . . Garrison Access . | . . . Total Hacks 20 | . 20 . Successful 14 | . 14 . Failed 6 | . 6 . Catastrophic 1 | . 1 . Database Lockouts . | . . . Manual . | . . . Terminals 19 | . 19 . Fabricators . | . . . Repair Stations . | . . . Recycling Units 1 | . 1 . Scanalyzers . | . . . Garrison Access . | . . . Terminal Hacks 13 | . 13 . Record 4 | . 4 . Robot Analysis 1 | . 1 . Prototype ID Bank 2 | . 2 . Locate Traps 2 | . 2 . Disarm Traps 1 | . 1 . Reprogram Traps 2 | . 2 . Zone Layout 1 | . 1 . Fabricator Hacks . | . . . Repair Station Hacks . | . . . Recycling Unit Hacks 1 | . 1 . Retrieve Components 1 | . 1 . Scanalyzer . | . . . Garrison Access Hacks . | . . . Unauthorized Hacks . | . . . Terminals . | . . . Fabricators . | . . . Repair Stations . | . . . Recycling Units . | . . . Scanalyzers . | . . . Garrison Access . | . . . Data Cores Recovered . | . . . Used . | . . . Hacking Detections 6 | . 6 . Full Trace Events 2 | . 2 . Feedback Events . | . . . Feedback Blocked . | . . . Robot Schematics Acquired . | . . . Robots Built . | . . . Matter . | . . . Time . | . . . Total Robot Build Rating . | . . . Part Schematics Acquired . | . . . Parts Built . | . . . Matter . | . . . Time . | . . . Total Part Build Rating . | . . . Parts Repaired . | . . . Time . | . . . Parts Recycled . | . . . Recycled Matter . | . . . Retrieved Matter . | . . . Retrieved Components 10 | . 10 . Parts Scanalyzed . | . . . Part Schematics Acquired . | . . . Parts Damaged . | . . . Bothacking | -11 -10 -10 ------------ Run | Scr Mat Min Used RIF Installer . | . . . Robots Hacked . | . . . Non-combat . | . . . Combat . | . . . Robot Hacks Applied . | . . . Relay Couplers Released . | . . . Robots Rewired . | . . . Allies Hacked . | . . . Hacks Repelled . | . . . Allies | -11 -10 -10 -------- Run | Scr Mat Min Total Allies 1 | . . 1 Largest Group 1 | . . 1 Highest-Rated Group 31 | . . 31 Highest-Rated Ally 31 | . . 31 Total Orders . | . . . Ally Attacks 1 | . . 1 Total Damage 21 | . . 21 Kills . | . . . Allies Corrupted . | . . . Allies Melted . | . . . Intel | -11 -10 -10 ------- Run | Scr Mat Min Robot Analysis Total 1 | . 1 . Derelict Logs Recovered . | . . . Drone Launches . | . . . Drone Recoveries . | . . . Exploration | -11 -10 -10 ------------- Run | Scr Mat Min Turns Passed 1486 | 87 888 511 Spaces Moved 915 | 47 481 387 Core 18 | 17 . 1 Treads 148 | . 148 . Legs 749 | 30 333 386 Wheels . | . . . Hover . | . . . Flight . | . . . Fastest Speed 50 | 50 120 120 Average Speed 132 | 110 143 120 Slowest Speed 200 | 150 160 200 Overloaded Moves . | . . . Propulsion Burnouts . | . . . Robots Hopped . | . . . Cave-ins Triggered . | . . . Exploration Rate (%) 49 | 6 68 73 Regions Visited 2 Branch Regions 1 Pre-discovered Areas 1 | . . 1 Known Exits Taken . | . . . Unknown Exits Taken 2 | 1 1 . Scrap Searched 1 | . . 1 Spaces Dug . | . . . Terrain Destroyed 6 | . . 6 Melee . | . . . Projectile . | . . . AOE 6 | . . 6 Terrain Rammed . | . . . Walls Destroyed . | . . . Machines Disabled . | . . . Actions | -11 -10 -10 --------- Run | Scr Mat Min Total 1083 | 68 608 407 Wait 46 | . 46 . Move 913 | 46 480 387 Hop . | . . . Pick Up 28 | 8 19 1 Fast Attach . | . . . Attach 14 | 5 6 3 Detach . | . . . Swap 9 | 1 5 3 Drop 9 | 1 8 . Fire 49 | 7 34 8 Melee 15 | . 10 5 Ram . | . . . Kick . | . . . Crush . | . . . Escape Stasis . | . . . Rewire . | . . . Trap . | . . . Miscellaneous . | . . . Route ------- -11/Scrapyard -10/Materials (discovered 3 exits: [*Mat] / [*Min x2]) -10/Mines (discovered 1 exit: [*Mat]) History --------- Turn | Location | Event 7 | -11/Scrapyard | Discovered new exit (range 16) 88 | -11/Scrapyard | Entered Materials 305 | -10/Materials | Build established: Mutant 648 | -10/Materials | Discovered new exit (range 9) 689 | -10/Materials | Discovered new exit (range 12) 759 | -10/Materials | Discovered new exit (range 15) 976 | -10/Materials | Entered Mines 984 | -10/Mines | Met a Derelict bent on vengeance 1081 | -10/Mines | Escorted by a lone wolf Derelict 1101 | -10/Mines | Learned location of Storage (-8) 1216 | -10/Mines | Discovered new exit (range 14) 1428 | -10/Mines | Assembled infested the area 1433 | -10/Mines | Assisted by a Guerilla fighting off Assembled 1455 | -10/Mines | Core integrity fell below 50% 1459 | -10/Mines | Core integrity fell below 20% 1487 | -10/Mines | Destroyed by D-53 Grenadier with Mini Grenade Launcher Last Messages --------------- U-05 Engineer lays Concrete. K-01 Serf destroyed. U-05 Engineer destroyed. as-56341 destroyed. as-66793 destroyed. as-79556 destroyed. Searching scrap... Found Tractor Beam. Found Sml. Battery. Found Mining Laser. Found 22 Matter. The unstable cave ceiling collapses. Aluminum Leg destroyed. The unstable cave ceiling collapses. as-82264 destroyed. as-50167 destroyed. The unstable cave ceiling collapses. G-34 Mercenary destroyed. The unstable cave ceiling collapses. Acquired Aluminum Leg. Map ----- +----------------------------------------------------+ | | | | | | | | | | | | | | | | | | | | | | | | | | | | | ????????????????????????????????????????????? | | ????????????????????????????????????????????? | | ??????????###???????????????????????????????? | | ?????????## #????######????????????????????? | | ????????## #??## ##???????????????????? | | ????????# ### ##??????????????????? | | ????????# #??????????????????? | | ?????????# #??????????????????? | | ???????????# ######## #??????????? | | ????????????# #??????????? | | ?????????????# [ ?????????????? | | ??????????????# =% @ #????????????????????? | | ??????????????# * #????????????????????? | | ??????????????# ##????????????????????? | | ??????????????## ##?????????????????????? | | ????????????# #|##??????????????????????? | | ???????????## #%#??????????????????###### | | ??????????# !#????????????????### | | ??????#### d ##??????????????## | | ??????# % ? ##????????????## #?# | | ??????# ##???????????# #?? | | ??????? #??????????## ##?? | | ??????? #?????????## ##??? | | ????????# # #?????????# ##???? | | ?????????## # #?####????# ##????? | | ???????????# # ### ##???# ##????? | | ?????????????# #???## #????? | | ?????????????# ##???# #????? | | ?????????????## ##### ##???? | | ??????????????## #### ## ##### | | ???????????????# #??## | | ???????????????# #??## | | ???????????????# ### ## | | ???????????????# ## #### | | ???????????????# ######??## | | ???????????????## #??????## #### | +----------------------------------------------------+ Best States ------------- Heat Dissipation 25 Energy Generation 14 Energy Capacity 160 Matter Stores 300 Matter Capacity 300 Sight Range 16 Robot Scan Range 10 Terrain Scan Density 10 Evasion (%) 40 Recoil Reduction 1 Item Schematics ----------------- None Robot Schematics ------------------ None Fabricated ------------ Nothing Alien Tech Used ----------------- None Achievements -------------- None Challenges ------------ None Game ------ Seed MicroLightningFrame Manual? 0 Play Time 00:21:00 Cumulative 4.4 hours Start 2021.11.11 @ 20:32:35 End 2021.11.11 @ 20:52:51 Sessions 1 Manual Loads 0 Difficulty Rogue Special Mode None Game No. 7 Rogue 7 Adventurer 0 Explorer 0 Win Type - Total 0 Types 0/0/0/0/0/0/0/0/0 Lore% 11 Gallery% 7 Achievement% 7 Wizard Run 0 Options --------- ASCII 0 Keyboard 0 Movement Mouse Keybinds 0 Fullscreen 1 Font 18/Terminus Map View 76x50 Tactical HUD 0 Map Filters NONE Filters NONE Steam 1 RUN: 18786940-663e-4793-aa4e-5eddfb7dfc04